bitfinex-derivatives/quotes_SOLF0:USTF0_20250424
["timestamp","ask_amount","ask_price","bid_price","bid_amount"]
[1745491615517,6.7981,147.09,147.07,24.42]
[1745491615722,6.73053725,147.09,147.07,24.42]
[1745491615922,6.73053725,147.09,147.04,31.15053725]
[1745491616421,6.7985,147.08,147.05,6.7994]
[1745491616722,6.73053725,147.09,147.05,6.7994]
[1745491617422,6.7991,147.06,147.04,31.2198]
[1745491617621,6.73053725,147.07,147.04,24.42]
[1745491617821,6.73053725,147.08,147.04,24.42]
[1745491618123,6.7993,147.06,147.04,24.42]
[1745491621425,6.7993,147.06,147.04,31.22]
[1745491622027,6.7988,147.07,147.04,31.22]
[1745491625931,6.7992,147.06,147.04,31.22]
[1745491627628,6.7992,147.06,147.04,24.42]
[1745491628833,6.7992,147.06,147.04,31.22]
[1745491629234,6.7992,147.06,147.04,24.42]
[1745491630235,6.7992,147.06,147.04,31.2199]
[1745491632635,6.7988,147.07,147.04,31.2199]
[1745491634535,13.52883725,147.08,147.04,24.42]
[1745491634737,1.9948,147.11,147.05,6.73053725]
[1745491635037,6.73053725,147.1,147.05,6.73053725]
[1745491635437,6.7979,147.09,147.06,6.7988]
[1745491635738,6.7979,147.09,147.05,6.73053725]
[1745491636030,6.7979,147.09,147.06,6.7988]
[1745491637539,6.7982,147.08,147.06,6.7988]
[1745491638844,6.73053725,147.1,147.06,6.73053725]
[1745491639342,6.73053725,147.09,147.05,6.73053725]
[1745491639541,6.73053725,147.08,147.04,24.42]
[1745491639838,6.73053725,147.08,147.04,31.15053725]
[1745491640041,6.7986,147.07,147.04,37.95013725]
[1745491640344,6.73053725,147.06,147.04,24.42]
[1745491640738,6.73053725,147.05,147.04,24.42]
[1745491640934,13.5933,147.12,147.04,24.42]
[1745491641244,13.52963725,147.06,147.04,31.2199]
[1745491641443,6.73053725,147.07,147.04,24.42]
[1745491641742,6.73053725,147.08,147.05,6.7992]
[1745491642240,6.73053725,147.09,147.04,31.15053725]
[1745491642444,24.42,147.13,147.08,6.73053725]
[1745491642641,6.73053725,147.12,147.08,6.73053725]
[1745491642941,6.73053725,147.12,147.08,30.93053725]
[1745491643244,6.7968,147.11,147.09,6.7974]
[1745491643436,13.52733725,147.11,147.09,6.7974]
[1745491645544,13.52733725,147.11,147.08,30.9979]
[1745491646046,13.52733725,147.11,147.09,6.7977]
[1745491646345,6.7965,147.12,147.09,6.7977]
[1745491646542,6.73053725,147.13,147.09,6.7977]
[1745491646748,6.73053725,147.12,147.09,6.7977]
[1745491647047,6.797,147.11,147.09,6.7977]
[1745491653655,13.52703725,147.12,147.09,6.7977]
[1745491654054,6.73053725,147.12,147.09,6.7977]
[1745491654455,6.797,147.11,147.09,6.7977]
[1745491654957,6.73053725,147.12,147.1,6.7972]
[1745491655254,6.73053725,147.11,147.02,24.2]
[1745491655456,6.73053725,147.06,147.04,6.7997]
[1745491655950,6.73053725,147.06,147.02,24.2]
[1745491656157,6.73053725,147.03,147.0,1.9849]
[1745491656455,6.8012,147.02,147.0,1.9849]
[1745491657258,6.8012,147.02,147.0,8.7867]
[1745491657760,6.73053725,147.03,147.0,8.7867]
[1745491657953,6.73053725,147.05,147.0,8.71543725]
[1745491658556,13.53003725,147.05,147.02,6.8009]
[1745491659057,6.73053725,147.07,147.02,6.73053725]
[1745491659260,6.73053725,147.07,147.04,6.7998]
[1745491659454,6.73053725,147.07,147.03,24.2]
[1745491659652,6.73053725,147.06,147.03,24.2]
[1745491659852,13.52983725,147.06,147.03,31.0002]
[1745491660157,6.73053725,147.06,147.03,24.2]
[1745491660457,6.73053725,147.05,147.03,24.2]
[1745491660856,13.53033725,147.05,147.03,24.2]
[1745491661956,6.73053725,147.05,147.03,31.0003]
[1745491662250,13.52983725,147.06,147.03,31.0003]
[1745491662558,6.73053725,147.06,147.04,6.7999]
[1745491662858,6.799,147.07,147.04,6.7999]
[1745491663152,13.52953725,147.07,147.04,6.7999]
[1745491663354,6.73053725,147.07,147.04,6.7999]
[1745491664058,13.52943725,147.07,147.04,6.7999]
[1745491664459,6.73053725,147.07,147.04,6.7999]
[1745491665557,6.7993,147.06,147.03,31.0002]
[1745491665761,13.52983725,147.06,147.03,31.0002]
[1745491666862,6.7998,147.05,147.03,24.2]
[1745491667161,13.53033725,147.05,147.03,24.2]
[1745491668162,6.8,147.04,147.03,24.2]
[1745491668362,6.73053725,147.04,147.0,26.1449]
[1745491669462,6.8007,147.03,147.0,32.9467]
[1745491669864,6.8007,147.03,147.0,8.7867]
[1745491670063,6.8007,147.03,147.0,32.9467]
[1745491670362,6.8007,147.03,147.0,8.7867]
[1745491670566,6.8007,147.03,147.0,32.9467]
[1745491671667,6.8009,147.02,147.0,32.9467]
[1745491673869,6.8007,147.03,147.0,32.9467]
[1745491674169,6.8007,147.03,147.0,26.1449]
[1745491674469,6.8007,147.03,147.0,32.9465]
[1745491675170,6.8007,147.03,147.01,6.8014]
[1745491675668,6.8007,147.03,147.0,26.1449]
[1745491675876,6.8007,147.03,147.0,32.9464]
[1745491677075,6.8009,147.02,147.0,32.9464]
[1745491677276,6.73053725,147.04,147.0,32.9464]
[1745491678077,6.8013,147.02,147.0,24.16]
[1745491678279,6.73053725,147.04,147.0,24.16]
[1745491679277,6.73053725,147.03,147.0,24.16]
[1745491679780,6.8014,147.01,147.0,24.16]
[1745491680280,6.8021,147.0,146.97,24.16]
[1745491680478,6.8021,147.0,146.97,37.69353725]
[1745491680671,13.53213725,147.01,146.97,30.89053725]
[1745491681077,13.53213725,147.01,146.98,6.8026]
[1745491681277,6.8016,147.01,146.99,6.73053725]
[1745491681580,6.8012,147.02,146.99,13.53263725]
[1745491681984,6.8014,147.01,146.99,13.53263725]
[1745491683885,6.8012,147.02,146.99,13.53263725]
[1745491685888,6.73053725,147.03,146.99,6.73053725]
[1745491686083,6.73053725,147.01,146.97,24.16]
[1745491686282,6.73053725,147.0,146.97,24.16]
[1745491686480,6.8023,146.99,146.97,24.16]
[1745491688585,6.8028,146.98,146.97,24.16]
[1745491688786,6.73053725,147.0,146.97,24.16]
[1745491689287,6.8023,146.99,146.97,24.16]
[1745491689487,6.73053725,147.0,146.97,24.16]
[1745491689684,6.73053725,146.98,146.88,20.4211]
[1745491689883,6.73053725,146.97,146.92,30.91053725]
[1745491690185,6.8041,146.96,146.93,6.8049]
[1745491692385,6.73053725,146.97,146.92,37.71603725]
[1745491692587,6.73053725,146.98,146.93,6.73053725]
[1745491692791,24.18,147.03,146.94,13.53493725]
[1745491692992,6.73053725,146.98,146.94,13.53493725]
[1745491693187,6.73053725,146.96,146.92,30.91053725]
[1745491693486,6.73053725,146.96,146.92,30.9854]
[1745491693693,6.73053725,146.95,146.92,24.18]
[1745491693887,6.73053725,146.94,146.89,8.82753725]
[1745491694090,6.73053725,146.94,146.89,32.88753725]
[1745491694491,6.73053725,146.94,146.9,6.8062]
[1745491694888,6.8053,146.93,146.9,6.8062]
[1745491696092,6.8056,146.92,146.9,6.8062]
[1745491696892,6.8053,146.93,146.9,6.8062]
[1745491698288,6.8056,146.92,146.9,6.8062]
[1745491699194,6.8053,146.93,146.9,6.8062]
[1745491700095,6.8056,146.92,146.89,39.69423725]
[1745491701095,6.8053,146.93,146.9,6.8064]
[1745491701396,6.73053725,146.94,146.9,6.73053725]
[1745491701592,6.73053725,146.96,146.91,6.73053725]
[1745491701894,6.8045,146.95,146.92,13.53573725]
[1745491702195,6.8047,146.94,146.92,6.73053725]
[1745491702395,6.8047,146.94,146.91,13.53633725]
[1745491702694,6.73053725,146.96,146.91,6.73053725]
[1745491702894,6.8044,146.95,146.92,6.8053]
[1745491703095,6.73053725,146.96,146.92,6.8053]
[1745491703296,6.8045,146.95,146.92,6.8053]
[1745491704198,6.73053725,146.98,146.94,6.8046]
[1745491704497,6.73053725,146.98,146.94,13.53513725]
[1745491704695,6.8035,146.97,146.94,13.53513725]
[1745491707802,6.73053725,146.98,146.93,24.08]
[1745491707803,6.803,146.98,146.95,6.73053725]
[1745491708103,6.73053725,147.0,146.96,6.73053725]
[1745491708302,6.8026,146.99,146.96,13.53403725]
[1745491709404,6.8021,147.0,146.97,6.73053725]
[1745491710202,6.8021,147.0,146.97,30.81053725]
[1745491710503,6.8021,147.0,146.98,6.8028]
[1745491710700,6.73053725,147.02,146.98,6.73053725]
[1745491710904,6.73053725,147.02,146.99,6.8021]
[1745491711102,6.8016,147.01,146.98,6.73053725]
[1745491711504,6.8016,147.01,146.98,13.53303725]
[1745491714611,6.8012,147.02,146.99,6.8023]
[1745491714911,6.73053725,147.04,146.97,24.08]
[1745491715113,6.801,147.02,146.99,13.53263725]
[1745491715602,6.801,147.02,146.99,6.73053725]
[1745491716412,6.801,147.02,146.99,13.53263725]
[1745491717410,6.801,147.02,147.0,6.8018]
[1745491717611,6.801,147.02,146.99,6.73053725]
[1745491718109,6.801,147.02,146.99,13.53263725]
[1745491718311,13.53123725,147.03,146.99,6.73053725]
[1745491718511,13.53123725,147.03,147.0,6.8016]
[1745491720112,6.8007,147.03,147.0,6.8016]
[1745491720313,6.8007,147.03,147.01,6.8014]
[1745491720514,6.73053725,147.04,147.01,30.79053725]
[1745491720515,6.8001,147.04,147.01,30.79053725]
[1745491720814,6.8001,147.04,147.01,37.59163725]
[1745491721417,6.8001,147.04,147.02,6.8009]
[1745491721712,6.7995,147.05,147.02,6.8009]
[1745491721907,6.7995,147.05,147.01,30.79053725]
[1745491722212,6.7995,147.05,147.02,13.53133725]
[1745491723810,6.7995,147.05,147.03,6.8005]
[1745491725111,13.52923725,147.07,147.04,6.7996]
[1745491725417,6.7987,147.07,147.04,6.7996]
[1745491725710,6.7987,147.07,147.05,6.7995]
[1745491728612,6.73053725,147.08,147.06,6.7988]
[1745491728819,15.42353725,147.09,147.05,24.1]
[1745491729020,8.62543725,147.09,147.05,24.1]
[1745491729221,6.7986,147.07,147.05,30.8993]
[1745491730121,13.52913725,147.07,147.05,24.1]
[1745491731521,13.52883725,147.08,147.05,30.8995]
[1745491731923,6.73053725,147.08,147.05,30.8995]
[1745491732125,6.799,147.07,147.05,24.1]
[1745491732429,6.73053725,147.06,147.02,24.1]
[1745491732626,6.73053725,147.03,147.02,24.1]
[1745491732928,6.73053725,147.05,147.02,24.1]
[1745491733123,6.73053725,147.05,147.03,6.8003]
[1745491733827,13.53043725,147.05,147.02,30.9007]
[1745491735331,13.53043725,147.05,147.02,24.1]
[1745491735528,6.8002,147.04,147.02,24.1]
[1745491736927,6.8005,147.03,147.02,24.1]
[1745491738833,6.8001,147.04,147.02,24.1]
[1745491739834,6.8005,147.03,147.02,24.1]
[1745491740130,6.73053725,147.05,147.02,24.1]
[1745491740432,13.53023725,147.05,147.02,30.9007]
[1745491743533,13.53023725,147.05,147.03,6.8004]
[1745491743836,13.53023725,147.05,147.02,24.1]
[1745491744733,13.53023725,147.05,147.02,30.9007]
[1745491745034,6.8001,147.04,147.02,30.9007]
[1745491745334,6.73053725,147.06,147.02,24.1]
[1745491745534,6.8005,147.03,147.02,24.1]
[1745491747129,6.73053725,147.04,147.02,24.1]
[1745491748236,13.53073725,147.04,147.02,24.1]
[1745491749237,13.53073725,147.04,147.02,30.9009]
[1745491750233,6.73053725,147.06,147.02,24.1]
[1745491750441,6.73053725,147.08,147.04,6.73053725]
[1745491750639,1.8949,147.09,147.04,6.73053725]
[1745491750938,8.6929,147.09,147.04,6.73053725]
[1745491751140,8.6929,147.09,147.06,6.7989]
[1745491752841,6.7983,147.08,147.06,6.7989]
[1745491753042,6.7983,147.08,147.05,13.52983725]
[1745491754047,6.7987,147.07,147.05,6.73053725]
[1745491754343,6.73053725,147.08,147.03,6.73053725]
[1745491755344,6.7996,147.05,147.03,13.53093725]
[1745491755845,6.7993,147.06,147.03,13.53093725]
[1745491756144,6.73053725,147.08,147.04,6.7999]
[1745491756335,1.8949,147.09,147.05,6.73053725]
[1745491757544,8.62543725,147.09,147.05,6.73053725]
[1745491757745,6.7989,147.07,147.04,13.53033725]
[1745491758141,6.7989,147.07,147.04,6.7998]
[1745491758346,6.7991,147.06,147.04,6.7998]
[1745491758641,6.7991,147.06,147.03,6.73053725]
[1745491758847,6.7997,147.05,147.02,30.83053725]
[1745491759345,6.7997,147.05,147.02,37.63123725]
[1745491759846,6.73053725,147.04,147.02,24.1]
[1745491760144,6.73053725,147.03,146.99,538.52]
[1745491760344,26.0109,147.08,146.99,562.62]
[1745491760345,6.8019,147.0,146.99,562.62]
[1745491760542,6.8019,147.0,146.99,24.1]
[1745491762545,13.53243725,147.0,146.99,24.1]
[1745491763848,6.8027,146.99,146.96,30.9034]
[1745491764047,13.53323725,146.99,146.96,30.9034]
[1745491764246,6.73053725,146.97,146.96,24.1]
[1745491764447,6.73053725,146.97,146.93,6.73053725]
[1745491764745,6.73053725,146.95,146.92,30.9255]
[1745491765142,6.73053725,146.97,146.92,30.85053725]
[1745491765349,6.73053725,146.98,146.93,6.73053725]
[1745491766251,13.53343725,146.98,146.94,6.8046]
[1745491766450,6.73053725,146.97,146.94,6.8046]
[1745491768855,6.73053725,146.97,146.95,6.8041]
[1745491769251,13.53383725,146.97,146.92,24.12]
[1745491769552,6.73053725,146.97,146.94,6.8043]
[1745491771154,6.73053725,146.97,146.95,6.8041]
[1745491772156,13.53383725,146.97,146.95,6.8041]
[1745491773355,6.73053725,146.99,146.95,6.73053725]
[1745491773557,3.8873,147.02,146.93,6.73053725]
[1745491773858,6.73053725,146.97,146.95,6.8039]
[1745491774256,6.73053725,146.97,146.93,6.73053725]
[1745491774759,6.73053725,146.97,146.95,6.8039]
[1745491775254,13.53383725,146.97,146.95,6.8039]
[1745491775455,3.8873,147.02,146.98,6.8028]
[1745491775659,6.73053725,147.02,146.98,6.8028]
[1745491775855,6.73053725,147.01,146.97,6.73053725]
[1745491776051,6.73053725,147.01,146.98,6.8025]
[1745491776554,13.53223725,147.01,146.98,6.8025]
[1745491778967,13.53243725,147.0,146.98,6.8025]
[1745491779360,6.73053725,146.99,146.96,24.12]
[1745491779562,6.73053725,146.98,146.96,24.12]
[1745491779761,6.73053725,146.98,146.96,30.9235]
[1745491779962,6.73053725,146.98,146.96,24.12]
[1745491780261,13.53343725,146.98,146.96,24.12]
[1745491780566,6.73053725,146.97,146.94,24.12]
[1745491780770,6.73053725,146.95,146.92,24.12]
[1745491781365,6.73053725,146.95,146.91,6.73053725]
[1745491781571,6.8039,146.96,146.85,6.73053725]
[1745491781572,6.73053725,146.92,146.85,6.73053725]
[1745491781866,6.73053725,146.89,146.85,6.73053725]
[1745491782068,6.73053725,146.9,146.85,6.73053725]
[1745491782269,6.73053725,146.9,146.86,6.73053725]
[1745491782470,6.73053725,146.9,146.86,13.53853725]
[1745491783271,13.53663725,146.91,146.86,13.53853725]
[1745491783467,6.8066,146.9,146.86,13.53853725]
[1745491784068,6.807,146.89,146.86,13.53853725]
[1745491784674,6.8074,146.88,146.85,6.73053725]
[1745491787070,6.8074,146.88,146.84,37.79953725]
[1745491787462,13.53793725,146.88,146.84,37.79953725]
[1745491788472,13.53853725,146.87,146.84,31.069]
[1745491788872,6.8084,146.86,146.84,24.26]
[1745491789072,6.73053725,146.86,146.84,24.26]
[1745491789272,6.73053725,146.86,146.82,1.9203]
[1745491789970,6.8094,146.84,146.82,1.9203]
[1745491790573,6.809,146.85,146.82,1.9203]
[1745491790772,6.73053725,146.87,146.82,8.65083725]
[1745491791070,6.73053725,146.88,146.84,6.73053725]
[1745491791372,31.01053725,146.9,146.85,6.73053725]
[1745491791572,6.73053725,146.9,146.85,6.73053725]
[1745491791773,6.8074,146.89,146.85,13.53903725]
[1745491792972,6.8075,146.88,146.85,13.53903725]
[1745491795376,6.8072,146.89,146.86,6.8082]
[1745491796477,13.53803725,146.88,146.85,6.8087]
[1745491796976,6.73053725,146.88,146.85,6.8084]
[1745491797176,6.73053725,146.88,146.84,6.73053725]
[1745491797177,6.73053725,146.88,146.82,1.9203]
[1745491797376,6.73053725,146.87,146.83,6.73053725]
[1745491797576,13.53823725,146.88,146.85,6.8088]
[1745491798173,13.53823725,146.88,146.84,13.53963725]
[1745491799376,13.53823725,146.88,146.85,6.8087]
[1745491799878,13.53773725,146.89,146.86,6.8083]
[1745491800074,6.8072,146.89,146.86,13.53883725]
[1745491800380,31.01053725,146.92,146.88,6.73053725]
[1745491800579,8.81973725,146.93,146.89,6.73053725]
[1745491800783,6.73053725,146.93,146.89,6.73053725]
[1745491800974,6.73053725,146.94,146.89,6.73053725]
[1745491801177,6.8054,146.93,146.9,13.53673725]
[1745491804078,6.8056,146.92,146.9,6.73053725]
[1745491804282,6.8056,146.92,146.89,37.81733725]
[1745491804584,6.8053,146.93,146.89,31.01053725]
[1745491804881,6.8053,146.93,146.9,6.8062]
[1745491805477,6.73053725,146.94,146.9,6.8062]
[1745491805682,6.8056,146.92,146.89,37.81723725]
[1745491807781,6.8052,146.93,146.9,6.8065]
[1745491808085,6.8052,146.93,146.9,13.53703725]
[1745491808385,6.8056,146.92,146.9,13.53703725]
[1745491808786,6.8056,146.92,146.9,6.73053725]
[1745491809488,6.8056,146.92,146.89,37.81733725]
[1745491809690,6.806,146.91,146.89,37.81733725]
[1745491809987,6.806,146.91,146.87,6.73053725]
[1745491809988,6.73053725,146.91,146.87,6.73053725]
[1745491810189,6.8066,146.9,146.87,6.73053725]
[1745491810388,6.73053725,146.91,146.86,31.01053725]
[1745491811291,6.8067,146.9,146.87,6.8079]
[1745491811590,6.73053725,146.92,146.87,6.73053725]
[1745491811789,6.73053725,146.92,146.88,6.73053725]
[1745491813290,6.73053725,146.93,146.89,6.73053725]
[1745491813990,13.53603725,146.93,146.9,6.8062]
[1745491814191,6.73053725,146.93,146.9,6.8062]
[1745491814593,6.8056,146.92,146.89,13.53723725]
[1745491814894,6.73053725,146.93,146.89,6.73053725]
[1745491815192,13.53583725,146.93,146.9,6.8063]
[1745491816590,6.8053,146.93,146.9,6.8063]
[1745491816796,13.53583725,146.93,146.9,6.8063]
[1745491817395,6.8056,146.92,146.9,6.8063]
[1745491817595,6.73053725,146.93,146.9,6.8063]
[1745491817792,6.73053725,146.93,146.89,13.53723725]
[1745491817992,6.8059,146.92,146.89,6.8067]
[1745491818394,6.73053725,146.93,146.88,13.53783725]
[1745491818591,6.73053725,146.9,146.86,24.28]
[1745491818796,6.73053725,146.88,146.83,30.85053725]
[1745491818998,6.73053725,146.87,146.84,6.809]
[1745491819194,6.73053725,146.85,146.83,24.12]
[1745491819700,6.8093,146.84,146.83,24.12]
[1745491819898,6.8093,146.84,146.8,30.85053725]
[1745491820196,13.53983725,146.84,146.81,6.8104]
[1745491820895,6.73053725,146.84,146.81,6.8106]
[1745491821096,13.53953725,146.85,146.8,30.85053725]
[1745491821297,3.9349,146.89,146.8,34.66854107]
[1745491821498,6.8081,146.87,146.84,6.8092]
[1745491825801,6.8076,146.88,146.85,6.8086]
[1745491826002,3.9349,146.89,146.8,34.66854107]
[1745491826605,6.8079,146.87,146.84,6.8089]
[1745491829203,6.8085,146.86,146.83,6.8096]
[1745491832907,6.808,146.87,146.84,6.8092]
[1745491833102,3.9349,146.89,146.8,34.66854107]
[1745491833407,10.54854107,146.85,146.78,1.8901]
[1745491833601,10.54854107,146.85,146.79,6.8114]
[1745491833903,10.54854107,146.85,146.78,1.8901]
[1745491834608,1.9914,146.84,146.76,24.14]
[1745491835306,6.8111,146.8,146.77,6.8123]
[1745491835609,1.9914,146.84,146.76,24.14]
[1745491835912,6.8109,146.81,146.78,6.812]
[1745491836211,6.8109,146.81,146.76,24.14]
[1745491836507,1.9914,146.84,146.76,24.14]
[1745491836508,6.8112,146.8,146.77,6.8123]
[1745491837009,6.8121,146.78,146.76,24.14]
[1745491837203,12.46974107,146.83,146.76,24.14]
[1745491837404,10.54854107,146.81,146.76,24.14]
[1745491837699,6.812,146.79,146.76,24.14]
[1745491837908,10.54854107,146.81,146.76,24.14]
[1745491838801,10.54854107,146.81,146.74,1.9103]
[1745491839106,6.8128,146.77,146.74,1.9103]
[1745491839410,6.8128,146.77,146.74,8.7242]
[1745491839802,10.54854107,146.81,146.74,8.7242]
[1745491839803,6.8123,146.78,146.74,1.9103]
[1745491840311,6.8123,146.78,146.74,8.724]
[1745491840505,6.8123,146.78,146.74,1.9103]
[1745491841107,6.8116,146.8,146.76,6.8127]
[1745491841408,13.56981692,146.8,146.75,6.75821692]
[1745491841603,13.56981692,146.8,146.77,6.8123]
[1745491841803,6.75821692,146.8,146.77,6.8123]
[1745491843009,13.56941692,146.8,146.77,6.8123]
[1745491843205,6.75821692,146.8,146.75,6.75821692]
[1745491843404,24.14,146.82,146.74,8.66851692]
[1745491843405,6.75821692,146.78,146.74,8.66851692]
[1745491843605,6.75821692,146.78,146.75,6.8132]
[1745491845816,13.57051692,146.78,146.75,6.8132]
[1745491846111,6.75821692,146.78,146.75,6.8132]
[1745491846710,13.57051692,146.78,146.75,6.8132]
[1745491850208,6.75821692,146.77,146.75,6.8132]
[1745491850708,13.57071692,146.77,146.75,6.8132]
[1745491850915,13.57071692,146.77,146.74,8.724]
[1745491851513,6.75821692,146.77,146.75,6.8133]
[1745491851713,6.75821692,146.78,146.74,6.75821692]
[1745491851910,6.75821692,146.8,146.76,6.75821692]
[1745491852112,6.8117,146.79,146.76,6.8127]
[1745491853513,13.56991692,146.79,146.76,6.8127]
[1745491853810,6.8121,146.78,146.75,6.75821692]
[1745491854015,6.75821692,146.78,146.74,1.9349]
[1745491854409,6.8126,146.77,146.74,8.7486]
[1745491854713,6.75821692,146.77,146.73,24.14]
[1745491855114,6.75821692,146.76,146.73,24.14]
[1745491855315,6.75821692,146.77,146.73,24.14]
[1745491855517,6.8133,146.76,146.73,30.9541]
[1745491855718,6.8133,146.76,146.73,24.14]
[1745491856918,6.8133,146.76,146.73,30.9541]
[1745491857116,6.75821692,146.74,146.7,6.75821692]
[1745491857419,6.75821692,146.74,146.7,13.57361692]
[1745491857613,6.8144,146.73,146.7,13.57361692]
[1745491857918,6.8144,146.73,146.7,6.75821692]
[1745491858318,13.57231692,146.74,146.71,6.8153]
[1745491858819,13.57151692,146.76,146.73,6.8144]
[1745491859119,6.8133,146.76,146.73,6.8144]
[1745491859620,13.57151692,146.76,146.73,6.8144]
[1745491860622,6.8133,146.76,146.73,6.8144]
[1745491861617,6.8133,146.76,146.74,6.8139]
[1745491861923,13.57091692,146.77,146.72,6.75821692]
[1745491862117,13.57091692,146.77,146.74,6.8137]
[1745491862324,13.57091692,146.77,146.72,6.75821692]
[1745491862325,6.8132,146.76,146.72,6.75821692]
[1745491862825,6.8132,146.76,146.73,6.8141]
[1745491863225,13.57141692,146.76,146.73,6.8141]
[1745491864626,6.8136,146.75,146.73,6.8141]
[1745491866032,13.57141692,146.76,146.73,6.8141]
[1745491866225,6.75821692,146.75,146.73,6.8141]
[1745491869928,13.57171692,146.75,146.72,6.8146]
[1745491870426,13.57171692,146.75,146.7,6.75821692]
[1745491870625,6.75821692,146.75,146.7,6.75821692]
[1745491870827,24.12,146.78,146.69,26.1585]
[1745491870828,6.75821692,146.74,146.69,24.12]
[1745491871028,6.75821692,146.74,146.7,6.75821692]
[1745491872331,6.75821692,146.74,146.73,6.8144]
[1745491873334,6.75821692,146.75,146.73,6.8144]
[1745491874830,6.75821692,146.75,146.71,6.75821692]
[1745491875031,6.75821692,146.77,146.72,6.75821692]
[1745491875333,6.75821692,146.81,146.76,6.75821692]
[1745491875527,6.75821692,146.82,146.77,6.75821692]
[1745491875725,8.7313,146.83,146.78,6.75821692]
[1745491875726,6.75821692,146.83,146.78,6.75821692]
[1745491876128,6.75821692,146.83,146.81,6.8104]
[1745491876533,6.75821692,146.83,146.78,6.75821692]
[1745491877736,6.75821692,146.83,146.79,6.75821692]
[1745491878031,6.75821692,146.81,146.76,24.04]
[1745491878234,6.75821692,146.82,146.77,6.75821692]
[1745491878437,13.56921692,146.81,146.77,13.57051692]
[1745491878936,13.57011692,146.79,146.76,24.04]
[1745491879735,6.8121,146.78,146.76,24.04]
[1745491882637,13.57001692,146.79,146.76,30.8528]
[1745491883337,6.8118,146.79,146.76,30.8528]
[1745491884437,13.56951692,146.8,146.77,6.8125]
[1745491886639,6.8116,146.79,146.76,30.8527]
[1745491888940,6.8116,146.79,146.76,24.04]
[1745491889340,6.8116,146.79,146.76,30.8527]
[1745491889938,13.56961692,146.8,146.77,6.8125]
[1745491890540,6.8105,146.82,146.78,6.75821692]
[1745491890738,1.9568,146.83,146.78,6.75821692]
[1745491891038,6.8098,146.83,146.8,6.8107]
[1745491895842,6.8104,146.82,146.79,6.8113]
[1745491896142,6.75821692,146.83,146.78,6.75821692]
[1745491896344,13.56811692,146.83,146.8,6.8109]
[1745491896542,6.75821692,146.83,146.8,6.8109]
[1745491897941,6.75821692,146.83,146.81,6.8107]
[1745491899342,13.56831692,146.83,146.81,6.8107]
[1745491900241,6.75821692,146.84,146.82,6.81]
[1745491900445,6.75821692,146.87,146.82,6.75821692]
[1745491900744,4.0785,146.88,146.84,6.75821692]
[1745491900945,6.8076,146.88,146.85,6.8087]
[1745491901646,13.56541692,146.89,146.85,6.75821692]
[1745491901945,6.8072,146.89,146.85,6.75821692]
[1745491902140,6.8072,146.89,146.86,6.8081]
[1745491902644,6.75821692,146.9,146.87,6.8078]
[1745491902946,24.18,146.93,146.88,6.75821692]
[1745491903142,6.75821692,146.93,146.88,6.75821692]
[1745491903342,6.75821692,146.93,146.89,6.8067]
[1745491903542,6.8059,146.92,146.89,6.8067]
[1745491903738,6.75821692,146.93,146.9,6.8062]
[1745491904040,6.75821692,146.94,146.9,13.56441692]
[1745491904239,6.8054,146.93,146.9,13.56441692]
[1745491904443,6.75821692,146.95,146.9,13.56441692]
[1745491904646,6.75821692,146.93,146.89,30.9868]
[1745491904844,6.75821692,146.91,146.89,24.18]
[1745491905043,6.75821692,146.9,146.86,30.9881]
[1745491905350,6.75821692,146.88,146.86,24.18]
[1745491905541,6.75821692,146.87,146.84,6.8092]
[1745491905744,6.8084,146.86,146.83,30.93821692]
[1745491906649,6.8084,146.86,146.83,37.74761692]
[1745491906949,6.8084,146.86,146.83,30.93821692]
[1745491908351,6.8084,146.86,146.83,37.74761692]
[1745491911352,13.56621692,146.87,146.84,6.8093]
[1745491913352,6.75821692,146.86,146.83,24.18]
[1745491914350,6.809,146.85,146.83,24.18]
[1745491914856,6.8093,146.84,146.83,24.18]
[1745491915154,6.8093,146.84,146.82,1.9129]
[1745491915356,6.8093,146.84,146.81,6.8104]
[1745491916957,24.18,146.88,146.8,24.18]